bitfinex/quotes_SOLUSD_20250518
["timestamp","ask_amount","ask_price","bid_price","bid_amount"]
[1747585115081,17.63309599,175.96,175.86,7.8808]
[1747585115302,17.63309599,175.93,175.89,17.63309599]
[1747585115486,18.64964886,175.97,175.86,7.8808]
[1747585115695,5.68407889,175.93,175.89,17.63309599]
[1747585116084,5.68407889,175.93,175.9,17.63309599]
[1747585116285,5.68407889,175.93,175.91,17.63309599]
[1747585116498,5.68407889,175.93,175.92,17.63309599]
[1747585116908,5.68343279,175.95,175.92,17.63309599]
[1747585117311,5.68343279,175.95,175.91,17.63309599]
[1747585118494,31.84125622,175.96,175.91,17.63309599]
[1747585119504,14.20816023,175.96,175.91,17.63309599]
[1747585119922,14.20816023,175.96,175.92,17.63309599]
[1747585120417,19.89127002,175.96,175.92,17.63309599]
[1747585121724,5.68310979,175.96,175.94,17.63309599]
[1747585121897,5.68310979,175.96,175.95,17.63309599]
[1747585122297,5.68181818,176.0,175.95,17.63309599]
[1747585122498,17.63309599,176.01,175.9,64.17309599]
[1747585122499,5.68149536,176.01,175.97,17.63309599]
[1747585123023,19.88523378,176.01,175.97,17.63309599]
[1747585125619,17.63309599,176.0,175.94,17.63309599]
[1747585126522,19.88523378,176.01,175.93,1.5731]
[1747585126523,17.63309599,175.99,175.93,19.20619599]
[1747585127395,19.8886237,175.98,175.93,19.20619599]
[1747585127602,37.52171969,175.98,175.93,19.20619599]
[1747585130903,19.8886237,175.98,175.93,19.20619599]
[1747585131095,19.8886237,175.98,175.94,17.63309599]
[1747585136909,37.52171969,175.98,175.93,17.63309599]
[1747585137231,19.8886237,175.98,175.94,17.63309599]
[1747585138212,31.83925578,175.98,175.93,17.63309599]
[1747585138835,14.20615979,175.98,175.94,17.63309599]
[1747585139033,5.68181818,176.0,175.96,17.63309599]
[1747585139333,37.51945962,176.0,175.95,17.63309599]
[1747585140499,19.88636363,176.0,175.95,17.63309599]
[1747585140707,37.51945962,176.0,175.95,17.63309599]
[1747585140933,17.63309599,175.99,175.93,17.63309599]
[1747585141138,17.63309599,175.98,175.93,17.63309599]
[1747585141730,17.63309599,175.97,175.91,17.63309599]
[1747585141917,17.63309599,175.95,175.9,17.63309599]
[1747585142426,19.89314538,175.94,175.9,17.63309599]
[1747585145223,19.89314538,175.94,175.92,17.63309599]
[1747585145224,5.68375582,175.94,175.92,17.63309599]
[1747585145631,5.68375582,175.94,175.9,17.63309599]
[1747585146010,19.89314538,175.94,175.9,17.63309599]
[1747585147010,36.28274485,175.93,175.88,1.5567]
[1747585147206,17.63309599,175.89,175.84,17.63309599]
[1747585148527,5.68569479,175.88,175.84,17.63309599]
[1747585149247,19.89993176,175.88,175.84,17.63309599]
[1747585149461,19.89993176,175.88,175.8,33.99114108]
[1747585149462,17.63309599,175.86,175.82,17.63309599]
[1747585149919,17.63309599,175.86,175.8,33.99114108]
[1747585150122,17.63309599,175.86,175.81,17.63309599]
[1747585150323,5.68666477,175.85,175.81,17.63309599]
[1747585150525,5.68666477,175.85,175.82,17.63309599]
[1747585151151,5.68666477,175.85,175.83,17.63309599]
[1747585151363,5.68666477,175.85,175.84,17.63309599]
[1747585151546,5.68601808,175.87,175.84,17.63309599]
[1747585151747,5.68601808,175.87,175.86,17.63309599]
[1747585152141,5.68504832,175.9,175.86,17.63309599]
[1747585153360,5.68504832,175.9,175.87,17.63309599]
[1747585153569,5.68504832,175.9,175.88,17.63309599]
[1747585153737,5.68504832,175.9,175.85,0.436872]
[1747585153927,5.68504832,175.9,175.88,17.63309599]
[1747585154336,5.68504832,175.9,175.87,17.63309599]
[1747585154623,17.63309599,175.89,175.85,0.436872]
[1747585154828,18.64964886,175.9,175.85,0.436872]
[1747585154829,17.63309599,175.87,175.85,0.436872]
[1747585155332,17.63309599,175.88,175.85,0.436872]
[1747585155759,17.63309599,175.88,175.83,17.63309599]
[1747585156149,18.64964886,175.9,175.81,17.63309599]
[1747585156150,17.63309599,175.86,175.81,17.63309599]
[1747585156470,5.68666477,175.85,175.81,17.63309599]
[1747585156971,5.68666477,175.85,175.79,1.579]
[1747585157148,5.68666477,175.85,175.81,17.63309599]
[1747585157532,19.90332669,175.85,175.81,17.63309599]
[1747585157733,19.90332669,175.85,175.8,17.63309599]
[1747585157734,37.53642268,175.85,175.8,17.63309599]
[1747585158275,18.64964886,175.84,175.8,17.63309599]
[1747585158438,19.90672278,175.82,175.78,17.63309599]
[1747585162170,19.46977678,175.82,175.78,17.63309599]
[1747585162872,17.63309599,175.81,175.76,17.63309599]
[1747585163375,36.28274485,175.8,175.75,17.63309599]
[1747585164964,5.68860572,175.79,175.75,17.63309599]
[1747585165575,5.68860572,175.79,175.71,26.0]
[1747585165746,19.91012002,175.79,175.71,26.0]
[1747585165955,37.54321601,175.79,175.74,17.63309599]
[1747585166257,19.91012002,175.79,175.75,17.63309599]
[1747585166457,19.91012002,175.79,175.71,26.0]
[1747585166672,17.63309599,175.77,175.72,17.63309599]
[1747585166979,19.91351842,175.76,175.72,17.63309599]
[1747585167944,14.22394173,175.76,175.72,17.63309599]
[1747585168150,14.22394173,175.76,175.73,17.63309599]
[1747585170946,5.689253,175.77,175.73,17.63309599]
[1747585171153,5.689253,175.77,175.76,17.63309599]
[1747585172476,14.22197704,175.79,175.75,17.63309599]
[1747585172983,17.63309599,175.78,175.73,17.63309599]
[1747585173177,31.85507303,175.79,175.74,17.63309599]
[1747585174353,37.54367875,175.79,175.74,17.63309599]
[1747585175881,37.54367875,175.79,175.7,27.6308]
[1747585175882,36.28274485,175.78,175.7,27.6308]
[1747585176079,36.28274485,175.78,175.73,17.63309599]
[1747585176688,5.689253,175.77,175.73,17.63309599]
[1747585177198,5.689253,175.77,175.74,17.63309599]
[1747585178099,5.68892934,175.78,175.74,17.63309599]
[1747585179307,19.91125269,175.78,175.74,17.63309599]
[1747585179601,37.54434868,175.78,175.73,17.63309599]
[1747585180394,19.91125269,175.78,175.7,1.6308]
[1747585180576,17.63309599,175.77,175.72,17.63309599]
[1747585180775,19.91125269,175.78,175.71,17.63309599]
[1747585180995,37.54434868,175.78,175.73,17.63309599]
[1747585181998,17.63309599,175.77,175.72,17.63309599]
[1747585182894,5.68957669,175.76,175.72,17.63309599]
[1747585183097,23.32170171,175.79,175.74,17.63309599]
[1747585183293,37.54321601,175.79,175.74,17.63309599]
[1747585184773,19.91012002,175.79,175.74,17.63309599]
[1747585185172,37.54321601,175.79,175.74,17.63309599]
[1747585187787,19.91012002,175.79,175.75,17.63309599]
[1747585188095,37.54321601,175.79,175.74,17.63309599]
[1747585189480,17.63309599,175.77,175.72,17.63309599]
[1747585190071,17.63309599,175.77,175.7,1.6308]
[1747585190305,17.63309599,175.77,175.72,17.63309599]
[1747585190506,17.63309599,175.77,175.71,17.63309599]
[1747585191004,17.63309599,175.76,175.71,17.63309599]
[1747585191390,5.68990042,175.75,175.71,17.63309599]
[1747585193497,19.91465148,175.75,175.71,17.63309599]
[1747585193697,37.54774747,175.75,175.7,19.26389599]
[1747585194119,17.63309599,175.71,175.64,0.30467391]
[1747585194407,17.63309599,175.68,175.64,0.30467391]
[1747585194610,17.63309599,175.69,175.64,17.9377699]
[1747585194827,17.63309599,175.7,175.65,17.63309599]
[1747585195131,17.63309599,175.72,175.67,17.63309599]
[1747585195310,14.22475106,175.75,175.71,17.63309599]
[1747585196212,31.85784705,175.75,175.7,17.63309599]
[1747585196519,37.54774747,175.75,175.7,17.63309599]
[1747585198303,23.32299641,175.75,175.7,17.63309599]
[1747585198988,37.54774747,175.75,175.7,17.63309599]
[1747585201131,19.91465148,175.75,175.71,17.63309599]
[1747585202601,19.91465148,175.75,175.7,17.63309599]
[1747585202776,19.91465148,175.75,175.71,17.63309599]
[1747585203210,37.54774747,175.75,175.7,17.63309599]
[1747585203412,17.63309599,175.74,175.69,17.63309599]
[1747585203936,17.63309599,175.74,175.68,17.63309599]
[1747585204101,17.63309599,175.74,175.69,17.63309599]
[1747585204488,5.69054799,175.73,175.7,17.63309599]
[1747585205613,19.91578467,175.74,175.7,17.63309599]
[1747585210708,5.69022419,175.74,175.73,17.63309599]
[1747585210915,5.69022419,175.74,175.71,17.63309599]
[1747585211782,19.91511488,175.75,175.71,17.63309599]
[1747585212015,19.91511488,175.75,175.67,27.13815741]
[1747585212016,19.91511488,175.75,175.72,17.63309599]
[1747585212212,19.91511488,175.75,175.67,32.83063994]
[1747585212213,19.91511488,175.75,175.73,17.63309599]
[1747585212390,5.68990042,175.75,175.73,17.63309599]
[1747585212589,5.68990042,175.75,175.74,17.63309599]
[1747585214217,19.91181142,175.78,175.74,17.63309599]
[1747585215623,14.22288208,175.78,175.74,17.63309599]
[1747585216717,5.68860572,175.79,175.77,17.63309599]
[1747585216919,5.68860572,175.79,175.76,17.63309599]
[1747585216920,19.91012002,175.79,175.76,17.63309599]
[1747585217225,19.91012002,175.79,175.71,21.55795322]
[1747585217226,19.91012002,175.79,175.75,17.63309599]
[1747585219895,14.2215143,175.79,175.76,17.63309599]
[1747585221115,5.68828213,175.8,175.78,17.63309599]
[1747585221307,5.68828213,175.8,175.79,17.63309599]
[1747585221910,5.6873116,175.83,175.79,17.63309599]
[1747585222101,5.6873116,175.83,175.8,17.63309599]
[1747585222626,5.6873116,175.83,175.79,17.63309599]
[1747585223742,5.6873116,175.83,175.81,17.63309599]
[1747585225635,5.6873116,175.83,175.8,17.63309599]
[1747585231444,5.6873116,175.83,175.82,17.63309599]
[1747585234227,5.6873116,175.83,175.81,17.63309599]
[1747585237842,5.6873116,175.83,175.82,17.63309599]
[1747585241519,5.68569479,175.88,175.82,17.63309599]
[1747585241829,5.68569479,175.88,175.85,17.63309599]
[1747585242424,14.21372236,175.89,175.86,17.63309599]
[1747585242425,19.89909389,175.89,175.86,17.63309599]
[1747585242626,5.68537153,175.89,175.86,17.63309599]
[1747585243027,5.68537153,175.89,175.87,17.63309599]
[1747585243646,5.68537153,175.89,175.88,17.63309599]
[1747585244046,5.68472514,175.91,175.88,17.63309599]
[1747585244226,5.68472514,175.91,175.9,17.63309599]
[1747585244428,173.68274485,175.95,175.9,17.63309599]
[1747585244429,5.68375582,175.94,175.9,17.63309599]
[1747585244658,19.89314538,175.94,175.9,17.63309599]
[1747585245963,19.89314538,175.94,175.86,1.13694925]
[1747585246148,19.89314538,175.94,175.9,17.63309599]
[1747585246655,37.52624137,175.94,175.89,17.63309599]
[1747585249480,16.69506187,176.02,175.92,17.63309599]
[1747585249660,5.68149536,176.01,175.97,17.63309599]
[1747585252543,5.68149536,176.01,175.98,17.63309599]
[1747585254146,5.68149536,176.01,176.0,17.63309599]
[1747585254878,31.83398573,176.05,176.0,17.63309599]
[1747585254879,5.68052715,176.04,176.0,17.63309599]
[1747585255478,19.88184503,176.04,176.0,17.63309599]
[1747585256257,17.63309599,176.03,175.98,17.63309599]
[1747585256847,5.68117259,176.02,175.99,17.63309599]
[1747585257758,5.68117259,176.02,176.0,17.63309599]
[1747585259077,19.88184503,176.04,176.0,17.63309599]
[1747585259458,37.51494102,176.04,175.97,1.599]
[1747585259669,37.51494102,176.04,175.99,17.63309599]
[1747585260586,37.51494102,176.04,176.0,17.63309599]
[1747585261163,14.20131788,176.04,176.0,17.63309599]
[1747585261674,14.20131788,176.04,175.97,1.599]
[1747585261850,14.20131788,176.04,176.0,17.63309599]
[1747585262563,14.20131788,176.04,176.02,17.63309599]
[1747585263451,5.67988185,176.06,176.03,17.63309599]
[1747585263655,5.67988185,176.06,176.04,17.63309599]
[1747585265378,5.67923671,176.08,176.04,17.63309599]
[1747585265681,19.87732848,176.08,176.04,17.63309599]
[1747585265976,17.63309599,176.06,175.98,82.8]
[1747585266165,17.63309599,176.06,176.01,17.63309599]
[1747585267489,17.63309599,176.06,175.97,27.599]
[1747585267490,5.68020448,176.05,176.03,17.63309599]
[1747585267861,5.68020448,176.05,176.02,17.63309599]
[1747585268770,37.51381168,176.05,176.0,17.63309599]
[1747585270357,19.88071569,176.05,176.0,17.63309599]
[1747585270580,37.51381168,176.05,176.0,17.63309599]
[1747585271359,17.63309599,176.04,175.99,17.63309599]
[1747585271599,19.88297448,176.03,175.99,17.63309599]
[1747585271760,17.63309599,176.02,175.97,1.599]
[1747585271957,17.63309599,176.02,175.97,17.63309599]
[1747585272866,19.88297448,176.03,175.97,17.63309599]
[1747585273076,17.63309599,176.02,175.97,17.63309599]
[1747585273488,5.68149536,176.01,175.97,17.63309599]
[1747585273668,23.31383013,176.04,175.99,17.63309599]
[1747585274569,5.68073414,176.04,175.99,17.63309599]
[1747585274769,23.31383013,176.04,176.0,17.63309599]
[1747585274985,5.68025817,176.05,176.01,17.63309599]
[1747585276599,23.31306163,176.06,176.02,17.63309599]
[1747585276773,5.67950621,176.08,176.04,17.63309599]
[1747585276977,17.63309599,176.1,176.05,17.63309599]
[1747585277173,43.63309599,176.1,176.05,17.63309599]
[1747585277614,17.63309599,176.09,176.04,17.63309599]
[1747585278304,5.67923671,176.08,176.04,17.63309599]
[1747585279063,5.67895158,176.09,176.06,17.63309599]
[1747585279174,5.67895158,176.09,176.02,5.68108233]
[1747585279175,5.67895158,176.09,176.07,17.63309599]
[1747585279376,5.67826926,176.11,176.07,17.63309599]
[1747585280129,23.31136525,176.11,176.07,17.63309599]
[1747585280469,5.67826926,176.11,176.07,17.63309599]
[1747585282594,5.67826926,176.11,176.02,31.68108233]
[1747585282595,5.67826926,176.11,176.08,17.63309599]
[1747585282908,5.67826926,176.11,176.07,17.63309599]
[1747585283274,5.67826926,176.11,176.08,17.63309599]
[1747585283884,23.31136525,176.11,176.06,17.63309599]
[1747585284099,17.63309599,176.08,176.03,17.63309599]
[1747585284309,5.67955926,176.07,176.03,17.63309599]
[1747585284477,5.67955926,176.07,176.04,17.63309599]
[1747585284676,5.67955926,176.07,176.03,17.63309599]
[1747585284918,19.87845742,176.07,176.03,17.63309599]
[1747585285701,17.63309599,176.04,175.98,17.63309599]
[1747585285906,17.63309599,176.02,175.96,1.5788]
[1747585286086,18.64964886,176.05,175.98,17.63309599]
[1747585286292,17.63309599,176.03,175.98,17.63309599]
[1747585288081,5.68052715,176.04,176.02,17.63309599]
[1747585288278,5.67955926,176.07,176.03,17.63309599]
[1747585288497,5.67955926,176.07,176.04,17.63309599]
[1747585289493,17.63309599,176.05,176.0,17.63309599]
[1747585289702,17.63309599,176.04,175.99,17.63309599]
[1747585290092,17.63309599,176.05,176.0,17.63309599]
[1747585290306,5.68052715,176.04,176.0,17.63309599]
[1747585290786,5.68052715,176.04,176.01,17.63309599]
[1747585290994,5.68052715,176.04,176.02,17.63309599]
[1747585291679,14.20092631,176.05,176.02,17.63309599]
[1747585292206,14.20092631,176.05,175.97,1.13622939]
[1747585292207,14.20092631,176.05,176.01,17.63309599]
[1747585292896,19.88113079,176.05,176.01,17.63309599]
[1747585293912,17.63309599,176.06,176.01,17.63309599]
[1747585294085,41.9624918,176.07,176.02,17.63309599]
[1747585294289,17.63309599,176.06,176.01,17.63309599]
[1747585295022,17.63309599,176.06,176.02,17.63309599]
[1747585295394,17.63309599,176.08,176.03,17.63309599]
[1747585295703,17.63309599,176.1,176.05,17.63309599]
[1747585295900,137.4,176.11,176.07,17.63309599]
[1747585296211,23.31108306,176.12,176.08,17.63309599]
[1747585296212,5.67798707,176.12,176.08,17.63309599]
[1747585296388,23.31108306,176.12,176.07,17.63309599]
[1747585296710,17.63309599,176.11,176.07,17.63309599]
[1747585297010,23.31139887,176.11,176.07,17.63309599]
[1747585298310,5.67830288,176.11,176.07,17.63309599]
[1747585299589,17.63309599,176.13,176.08,17.63309599]
[1747585299794,17.63309599,176.14,176.09,17.63309599]
[1747585300720,5.67762448,176.13,176.09,17.63309599]
[1747585301592,5.67762448,176.13,176.04,27.5279]
[1747585301798,17.63309599,176.11,176.06,17.63309599]
[1747585302010,36.28274485,176.12,176.07,17.63309599]
[1747585302784,5.67826926,176.11,176.07,17.63309599]
[1747585303203,19.87394241,176.11,176.04,1.5279]
[1747585303410,19.87394241,176.11,176.07,17.63309599]
[1747585303691,37.5070384,176.11,176.06,17.63309599]
[1747585304187,37.5070384,176.11,176.0,29.95835717]
[1747585304188,18.64964886,176.1,176.0,8.2726]
[1747585304402,17.63309599,176.06,176.01,17.63309599]
[1747585304590,18.64964886,176.1,176.0,1.6291]
[1747585304806,5.67923671,176.08,176.04,17.63309599]
[1747585305205,5.67923671,176.08,176.03,17.63309599]
[1747585305713,23.3123327,176.08,176.03,17.63309599]
[1747585306090,5.67923671,176.08,176.04,17.63309599]
[1747585308094,5.67923671,176.08,176.0,1.6291]
[1747585308095,17.63309599,176.06,176.0,1.6291]
[1747585308302,17.63309599,176.06,176.01,17.63309599]
[1747585308499,17.63309599,176.06,176.02,17.63309599]
[1747585308694,36.28274485,176.07,176.02,17.63309599]
[1747585308905,5.67923671,176.08,176.04,17.63309599]
[1747585309106,23.3123327,176.08,176.03,17.63309599]
[1747585310712,17.63309599,176.07,176.02,17.63309599]
[1747585311014,17.63309599,176.06,176.01,17.63309599]
[1747585311219,17.63309599,176.05,176.0,19.26219599]
[1747585311403,5.68052715,176.04,176.0,19.26219599]
[1747585312103,5.68052715,176.04,176.01,17.63309599]
[1747585313411,17.63309599,176.04,175.99,17.63309599]
[1747585314417,5.68084985,176.03,175.99,17.63309599]
[1747585315614,23.31394584,176.03,175.98,17.63309599]
[1747585315920,17.63309599,176.02,175.97,17.63309599]
[1747585316611,23.31457312,176.02,175.97,17.63309599]
[1747585317023,41.96353683,176.04,175.99,17.63309599]
[1747585318125,17.63309599,176.03,175.98,17.63309599]
[1747585319006,41.96353683,176.04,175.99,17.63309599]
[1747585319320,41.96353683,176.04,176.0,17.63309599]
[1747585319321,23.31388797,176.04,176.0,17.63309599]
[1747585319525,5.68079198,176.04,176.0,17.63309599]
[1747585319825,23.31388797,176.04,175.99,20.84078485]
[1747585321026,5.68079198,176.04,176.01,17.63309599]
[1747585321209,5.68079198,176.04,176.0,17.63309599]
[1747585321722,23.31388797,176.04,175.99,17.63309599]
[1747585322638,17.63309599,176.03,175.96,1.6581]
[1747585322940,17.63309599,176.0,175.95,17.63309599]
[1747585323236,17.63309599,175.97,175.93,4.51109202]
[1747585323422,17.63309599,175.98,175.93,17.63309599]
[1747585324005,17.63309599,175.96,175.91,17.63309599]
[1747585324225,36.28274485,175.97,175.92,17.63309599]
[1747585324431,18.64964886,175.97,175.93,17.63309599]
[1747585324763,5.68310979,175.96,175.93,17.63309599]
[1747585325252,23.31620578,175.96,175.91,17.63309599]
[1747585325463,5.68310979,175.96,175.92,17.63309599]
[1747585326451,5.68310979,175.96,175.91,17.63309599]
[1747585326452,23.31620578,175.96,175.91,17.63309599]
[1747585326756,23.31620578,175.96,175.88,1.5612]
[1747585326940,36.28274485,175.95,175.9,17.63309599]
[1747585327449,5.68310979,175.96,175.93,17.63309599]
[1747585327657,26.0,175.99,175.95,17.63309599]
[1747585327873,5.68214103,175.99,175.9,17.63309599]
[1747585328160,36.28274485,175.98,175.93,17.63309599]
[1747585328534,18.64964886,175.98,175.94,17.63309599]
[1747585329054,23.31588282,175.97,175.92,17.63309599]
[1747585329357,17.63309599,175.96,175.91,17.63309599]
[1747585329861,36.28274485,175.96,175.92,17.63309599]
[1747585330366,17.63309599,175.95,175.91,17.63309599]
[1747585330943,17.63309599,175.95,175.88,1.5612]
[1747585331155,5.68375582,175.94,175.91,17.63309599]
[1747585331339,23.31685181,175.94,175.88,1.5612]
[1747585331541,5.68375582,175.94,175.9,17.63309599]
[1747585331750,5.68375582,175.94,175.91,17.63309599]
[1747585331956,5.68375582,175.94,175.92,17.63309599]
[1747585332259,5.68375582,175.94,175.82,21.70184688]
[1747585332260,0.2944,175.88,175.75,8.68335926]
[1747585332472,44.64964886,175.89,175.72,34.73343706]
[1747585332473,26.0,175.73,175.72,34.73343706]
[1747585332647,26.0,175.62,175.54,31.44926237]
[1747585332844,26.0,175.57,175.54,26.85788909]
[1747585333161,23.32947878,175.55,175.54,26.85788909]
[1747585333351,5.69638279,175.55,175.52,42.81537542]
[1747585333679,54.34319574,175.53,175.52,42.81537542]
[1747585333861,82.96018278,175.53,175.49,87.63919144]
[1747585334063,82.68639148,175.5,175.49,87.63919144]
[1747585334454,88.63445029,175.5,175.49,87.63919144]
[1747585334666,82.68639148,175.5,175.49,87.63919144]
[1747585335079,89.52133979,175.5,175.49,87.63919144]
[1747585335254,117.83616088,175.5,175.49,87.63919144]
[1747585335446,116.69921826,175.5,175.49,76.13911602]
[1747585335669,4.1243348,175.49,175.44,59.64888342]
[1747585335868,28.34319574,175.45,175.44,59.64888342]
[1747585336070,1.13694262,175.45,175.44,21.0]
[1747585336969,28.50017957,175.47,175.44,21.0]
[1747585337170,28.50017957,175.47,175.44,49.34319574]
[1747585337353,11.61497928,175.45,175.44,21.0]
[1747585337948,11.61497928,175.45,175.44,49.34319574]
[1747585338273,9.94837928,175.45,175.44,21.0]
[1747585338650,9.94837928,175.45,175.44,49.34319574]
[1747585338844,9.94837928,175.45,175.44,21.0]
[1747585339051,9.94837928,175.45,175.44,49.34319574]
[1747585339265,9.94837928,175.45,175.44,29.5554137]
[1747585339860,4.1243348,175.49,175.45,5.69962952]
[1747585340062,4.1243348,175.49,175.48,28.34319574]
[1747585341096,1.13694262,175.51,175.45,26.0]
[1747585341284,1.13694262,175.51,175.46,28.34319574]
[1747585341590,1.13694262,175.51,175.46,0.64465942]
[1747585342193,1.13694262,175.51,175.47,28.34319574]
[1747585342494,1.13694262,175.51,175.44,1.21221796]
[1747585342495,1.13694262,175.51,175.46,28.34319574]
[1747585342685,5.26929714,175.53,175.5,28.34319574]
[1747585342914,5.26929714,175.53,175.51,22.94]
[1747585343098,5.26929714,175.53,175.51,51.28319574]
[1747585343396,5.26929714,175.53,175.51,22.94]
[1747585343766,4.13235452,175.53,175.52,28.34319574]
[1747585345195,4.13235452,175.53,175.52,34.04055216]
[1747585345983,4.13235452,175.53,175.5,213.18]
[1747585346178,4.13235452,175.53,175.5,241.52319574]
[1747585346499,4.13235452,175.53,175.5,213.18]
[1747585347273,4.13235452,175.53,175.5,241.52319574]
[1747585347476,4.13235452,175.53,175.51,28.34319574]
[1747585347695,4.13235452,175.53,175.52,28.34319574]
[1747585348104,4.13235452,175.53,175.5,213.18]
[1747585348402,18.64964886,175.52,175.5,213.18]
[1747585349295,24.34702867,175.52,175.5,213.18]
[1747585351790,5.26929714,175.53,175.5,241.52319574]
[1747585351995,4.13235452,175.53,175.52,28.34319574]
[1747585353091,9.82938636,175.53,175.52,22.94]
[1747585353282,4.13235452,175.53,175.52,22.94]
[1747585353485,18.64964886,175.52,175.39,213.24]
[1747585353841,18.64964886,175.52,175.48,28.34319574]
[1747585353993,18.64964886,175.52,175.49,51.28319574]
[1747585354208,10.96655952,175.53,175.49,51.28319574]
[1747585354405,18.64964886,175.52,175.49,51.28319574]
[1747585354732,10.96655952,175.53,175.49,51.28319574]
[1747585354936,10.96655952,175.53,175.49,22.94]
[1747585355110,18.64964886,175.52,175.49,22.94]
[1747585355311,5.63384125,175.51,175.49,22.94]
[1747585355621,5.63384125,175.51,175.49,51.28319574]
[1747585356322,72.9928446,175.5,175.49,22.94]
[1747585356910,46.9928446,175.5,175.49,22.94]
[1747585357332,52.69085029,175.5,175.49,18.80764548]
[1747585359342,78.69085029,175.5,175.49,18.80764548]
[1747585359728,53.4896608,175.5,175.49,18.80764548]
[1747585359939,54.62660342,175.5,175.49,18.80764548]
[1747585360247,56.96979916,175.5,175.49,18.80764548]
[1747585360929,18.64964886,175.46,175.43,22.94]
[1747585361234,44.64964886,175.44,175.43,22.94]
[1747585361442,50.34960326,175.44,175.43,22.94]
[1747585361968,24.34960326,175.44,175.43,22.94]
[1747585362453,18.64964886,175.43,175.4,28.34319574]
[1747585362648,1.13694262,175.43,175.39,213.24]
[1747585362841,4.27894887,175.43,175.42,28.34319574]
[1747585363243,4.27894887,175.43,175.41,28.34319574]
[1747585363463,8.84228556,175.43,175.42,28.34319574]
[1747585363658,8.84228556,175.43,175.39,213.24]
[1747585363859,8.84228556,175.43,175.42,28.34319574]
[1747585364365,5.70027931,175.43,175.42,28.34319574]
[1747585364668,5.70027931,175.43,175.39,213.24]
[1747585364971,5.70027931,175.43,175.42,28.34319574]
[1747585365488,5.6999544,175.44,175.42,28.34319574]
[1747585365674,5.6999544,175.44,175.43,51.30319574]
[1747585368168,3.14200625,175.47,175.43,46.64477845]
[1747585368375,8.84098613,175.47,175.46,28.34319574]
[1747585370673,3.14200625,175.47,175.46,28.34319574]
[1747585371287,8.84098613,175.47,175.43,18.30158271]
[1747585371595,8.84098613,175.47,175.46,28.34319574]
[1747585372300,18.64964886,175.46,175.43,18.30158271]
[1747585372472,1.13694262,175.45,175.44,28.34319574]
[1747585372672,3.14200625,175.45,175.43,18.30158271]
[1747585372988,3.14200625,175.45,175.44,28.34319574]
[1747585373593,8.84163577,175.45,175.44,28.34319574]
[1747585374187,8.84163577,175.45,175.43,46.64477845]
[1747585374979,9.97857839,175.45,175.43,46.64477845]
[1747585375700,28.62822725,175.45,175.43,18.30158271]
[1747585375997,3.14200625,175.44,175.43,10.09560767]
[1747585376378,3.14200625,175.44,175.43,38.43880341]
[1747585376580,31.48520199,175.44,175.43,10.09560767]
[1747585376791,3.14200625,175.44,175.43,10.09560767]
[1747585377594,28.62855213,175.44,175.43,10.09560767]
[1747585378496,9.97890327,175.44,175.43,10.09560767]
[1747585378682,28.62855213,175.44,175.43,10.09560767]
[1747585379200,18.64964886,175.43,175.39,213.24]
[1747585379391,18.64964886,175.41,175.39,213.24]
[1747585379591,5.70125427,175.4,175.39,213.24]
[1747585380306,3.14200625,175.4,175.39,241.58319574]
[1747585380606,3.14200625,175.4,175.39,213.24]
[1747585382594,5.54200625,175.4,175.39,213.24]
[1747585383218,11.24326052,175.4,175.39,213.24]
[1747585383384,5.54200625,175.4,175.39,213.24]
[1747585383802,11.24326052,175.4,175.39,213.24]
[1747585384587,58.23610512,175.4,175.39,213.24]
[1747585385417,58.23610512,175.4,175.39,212.74]
[1747585385602,29.89290938,175.4,175.39,212.74]
[1747585385910,58.23610512,175.4,175.39,212.74]
[1747585386295,18.64964886,175.39,175.38,0.33247321]
[1747585386610,48.12978722,175.39,175.38,0.33247321]
[1747585386814,51.27179347,175.39,175.38,0.33247321]
[1747585387212,22.92859773,175.39,175.38,0.33247321]
[1747585387382,51.27179347,175.39,175.38,0.33247321]
[1747585387915,28.63017706,175.39,175.38,0.33247321]
[1747585388087,9.9805282,175.39,175.38,0.33247321]
[1747585388416,8.84358558,175.39,175.38,0.33247321]
[1747585388801,56.9733728,175.39,175.38,0.33247321]
[1747585390187,82.9733728,175.39,175.38,0.33247321]
[1747585393508,56.9733728,175.39,175.38,0.33247321]
[1747585394915,18.64964886,175.35,175.31,24.78]
[1747585395114,46.9928446,175.33,175.31,24.78]
[1747585395289,18.64964886,175.33,175.31,24.78]
[1747585395506,46.9928446,175.33,175.31,24.78]
[1747585395715,18.64964886,175.33,175.31,24.78]
[1747585396090,5.7038558,175.32,175.31,24.78]
[1747585398116,34.04672622,175.33,175.31,24.78]
[1747585398296,34.04672622,175.33,175.27,29.89459574]
[1747585398297,18.64964886,175.31,175.27,0.02]
[1747585398499,28.34319574,175.28,175.27,0.02]
[1747585398821,28.34319574,175.29,175.27,0.02]
[1747585399119,18.64964886,175.29,175.27,0.02]
[1747585399322,30.74319574,175.28,175.27,0.02]
[1747585399521,2.4,175.28,175.27,0.02]
[1747585400221,8.10515746,175.28,175.27,0.02]